fUSD/lending_fUSD_20251225
["ID","MTS","AMOUNT","RATE_DAILY","PERIOD"]
[399750952,1766658418359,-200.0,0.0006,120]
[399750953,1766658418392,-199.0,0.0006,120]
[399750954,1766658418426,-1000.0,0.0006,120]
[399750955,1766658418458,-4000.0,0.0006,120]
[399750956,1766658418491,-100327.03407947,0.0006,120]
[399750957,1766658418525,-6415.0,0.0006,120]
[399750958,1766658418557,-4110.39,0.0006,120]
[399750959,1766658418589,-669.03,0.0006,120]
[399750960,1766658418620,-218.14975262,0.00060214,120]
[399750961,1766658418652,-150.0,0.00060222,120]
[399750962,1766658418686,-300916.59705603,0.00060264,120]
[399750963,1766658418800,151.0,0.00039,120]
[399750964,1766658418843,151.0,0.00039,120]
[399750965,1766658418925,123673.54046777,0.00060264,120]
[399750966,1766658427655,-151.0,0.00039,120]
[399750967,1766658427688,-151.0,0.00039,120]
[399750968,1766658427788,-300.0,0.00060263,120]
[399750969,1766658427827,-1500.0,0.00060263,120]
[399750970,1766658427859,-500.0,0.00060263,120]
[399750971,1766658427892,-500.0,0.00060263,120]
[399750972,1766658427923,-311.1,0.00060263,120]
[399750973,1766658427956,-1500.0,0.00060263,120]
[399750974,1766658427991,-500.0,0.00060263,120]
[399750975,1766658428024,-500.0,0.00060263,120]
[399750976,1766658428056,-322.6107,0.00060263,120]
[399750977,1766658428092,-500.0,0.00060263,120]
[399750978,1766658428125,-1500.0,0.00060263,120]
[399750979,1766658428158,-500.0,0.00060263,120]
[399750980,1766658428189,-334.5472959,0.00060263,120]
[399750981,1766658428222,-500.0,0.00060263,120]
[399750982,1766658428256,-1500.0,0.00060263,120]
[399750983,1766658428290,-500.0,0.00060263,120]
[399750984,1766658428327,-376366.50746973,0.00060264,120]
[399750985,1766658428367,346.92554585,0.00060263,120]
[399750986,1766658428403,200.0,0.00060263,120]
[399750987,1766658428439,200.0,0.00060263,120]
[399750988,1766658428477,500.0,0.00060263,120]
[399750989,1766658428515,1500.0,0.00060263,120]
[399750990,1766658428559,500.0,0.00060263,120]
[399750991,1766658428846,151.0,0.00039,120]
[399750992,1766658428885,359.76179104,0.00060263,120]
[399750993,1766658428923,200.0,0.00060263,120]
[399750994,1766658428963,200.0,0.00060263,120]
[399750995,1766658428999,500.0,0.00060263,120]
[399750996,1766658429038,1500.0,0.00060263,120]
[399750997,1766658429087,500.0,0.00060263,120]
[399750998,1766658429123,500.0,0.00060263,120]
[399750999,1766658429171,151.0,0.00039,120]
[399751000,1766658429213,200.0,0.00060263,120]
[399751001,1766658429252,200.0,0.00060263,120]
[399751002,1766658429290,500.0,0.00060263,120]
[399751003,1766658429326,1500.0,0.00060263,120]
[399751004,1766658429372,500.0,0.00060263,120]
[399751005,1766658429407,500.0,0.00060263,120]
[399751006,1766658429465,200.0,0.00060263,120]
[399751007,1766658429523,200.0,0.00060263,120]
[399751008,1766658429573,500.0,0.00060263,120]
[399751009,1766658429692,1500.0,0.00060263,120]
[399751010,1766658429743,500.0,0.00060263,120]
[399751011,1766658429800,500.0,0.00060263,120]
[399751012,1766658430026,200.0,0.00060263,120]
[399751013,1766658430133,500.0,0.00060263,120]
[399751014,1766658430187,307.97721752,0.00060263,120]
[399751015,1766658430296,1500.0,0.00060263,120]
[399751016,1766658430333,500.0,0.00060263,120]
[399751017,1766658430393,373.07297731,0.00060263,120]
[399751018,1766658430431,500.0,0.00060263,120]
[399751019,1766658430715,500.0,0.00060263,120]
[399751020,1766658430900,1500.0,0.00060263,120]
[399751021,1766658430935,500.0,0.00060263,120]
[399751022,1766658430981,386.87667747,0.00060263,120]
[399751023,1766658431016,500.0,0.00060263,120]
[399751024,1766658431316,500.0,0.00060263,120]
[399751025,1766658431536,500.0,0.00060263,120]
[399751026,1766658431572,401.19111454,0.00060263,120]
[399751027,1766658431607,500.0,0.00060263,120]
[399751028,1766658431639,1500.0,0.00060263,120]
[399751029,1766658432013,500.0,0.00060263,120]
[399751030,1766658432151,500.0,0.00060263,120]
[399751031,1766658432188,500.0,0.00060263,120]
[399751032,1766658432224,1500.0,0.00060263,120]
[399751033,1766658432304,5526.0,0.000571,120]
[399751034,1766658432541,5526.0,0.000562,120]
[399751035,1766658432636,500.0,0.00060263,120]
[399751036,1766658432765,77008.0,0.000552,120]
[399751037,1766658432950,500.0,0.00060263,120]
[399751038,1766658432986,500.0,0.00060263,120]
[399751039,1766658433022,1000.0,0.00060263,120]
[399751040,1766658433063,500.0,0.00060263,120]
[399751042,1766658449608,1863.0615,0.00010542,2]
[399751043,1766658453385,161.49,0.00010177,2]
[399751063,1766658565186,7975.4585,0.00010535,2]
[399751064,1766658565213,10000.01,0.00010535,2]
[399751065,1766658565238,10000.01,0.00010535,2]
[399751066,1766658565264,10000.01,0.00010535,2]
[399751067,1766658565290,10000.01,0.00010535,2]
[399751068,1766658565316,10000.01,0.00010535,2]
[399751069,1766658565342,10000.01,0.00010535,2]
[399751070,1766658565367,10000.01,0.00010535,2]
[399751071,1766658575556,-230.18345015,0.00010535,2]
[399751077,1766658631320,-300.0,0.00010534,2]
[399751079,1766658631330,-1200.0,0.00010534,2]
[399751080,1766658631340,-150.0,0.00010534,2]
[399751081,1766658631350,-300.0,0.00010534,2]
[399751082,1766658631360,-236.0,0.00010534,2]
[399751083,1766658631370,-992.44452573,0.00010534,2]
[399751084,1766658631379,-31792.24334888,0.00010535,2]
[399751085,1766658631391,-704335.69152434,0.00010535,2]
[399751086,1766658631403,-6771.80452214,0.00010535,2]
[399751087,1766658631415,-2532.10146064,0.00010535,2]
[399751088,1766658631427,-1001.89552022,0.00010535,2]
[399751089,1766658631443,-1091.80232096,0.00010535,2]
[399751090,1766658631454,-626.31575954,0.00010535,2]
[399751091,1766658631535,-822.10562034,0.00010535,2]
[399751096,1766658637527,-500.0,0.00010534,2]
[399751097,1766658637537,-272.73719256,0.00010534,2]
[399751098,1766658637547,-500.0,0.00010534,2]
[399751099,1766658637558,-495.54037702,0.00010534,2]
[399751100,1766658637567,-355.95594197,0.00010534,2]
[399751101,1766658637577,-490.95102171,0.00010534,2]
[399751102,1766658637588,-500.0,0.00010534,2]
[399751103,1766658637599,-500.0,0.00010534,2]
[399751104,1766658637609,-500.0,0.00010534,2]
[399751105,1766658637619,-441.72819276,0.00010534,2]
[399751106,1766658637629,-500.0,0.00010534,2]
[399751107,1766658637638,-500.0,0.00010534,2]
[399751108,1766658637648,-500.0,0.00010534,2]
[399751109,1766658637658,-427.50865619,0.00010534,2]
[399751110,1766658637669,-500.0,0.00010534,2]
[399751111,1766658637678,-450.00000003,0.00010534,2]
[399751112,1766658637689,-500.0,0.00010534,2]
[399751114,1766658637698,-500.0,0.00010534,2]
[399751116,1766658637720,-500.0,0.00010534,2]
[399751117,1766658637732,-500.0,0.00010534,2]
[399751118,1766658637742,-500.0,0.00010534,2]
[399751119,1766658637752,-500.0,0.00010534,2]
[399751120,1766658637763,-500.0,0.00010534,2]
[399751121,1766658637773,-500.0,0.00010534,2]
[399751122,1766658637783,-500.0,0.00010534,2]
[399751123,1766658637794,-500.0,0.00010534,2]
[399751124,1766658637804,-500.0,0.00010534,2]
[399751125,1766658637815,-500.0,0.00010534,2]
[399751126,1766658637826,-500.0,0.00010534,2]
[399751127,1766658637836,-172820.32797279,0.00010535,2]
[399751128,1766658637847,-250.0,0.00010619,2]
[399751129,1766658637857,-383.2860114,0.00010625,2]
[399751130,1766658637867,-1200.0,0.00010626,2]
[399751131,1766658637878,-15534.92857564,0.00010627,2]
[399751132,1766658637887,-151.0,0.00010636,2]
[399751133,1766658637898,-151.0,0.00010636,2]
[399751134,1766658637908,-151.0,0.00010636,2]
[399751135,1766658637918,-151.0,0.00010636,2]
[399751136,1766658637928,-151.0,0.00010636,2]
[399751137,1766658637939,-151.0,0.00010636,2]
[399751138,1766658637949,-151.0,0.00010636,2]
[399751139,1766658637960,-151.0,0.00010636,2]
[399751140,1766658637970,-151.0,0.00010636,2]
[399751141,1766658637981,-151.0,0.00010636,2]
[399751142,1766658637991,-151.0,0.00010636,2]
[399751143,1766658638001,-151.0,0.00010636,2]
[399751144,1766658638011,-151.0,0.00010636,2]
[399751145,1766658638022,-151.0,0.00010636,2]
[399751146,1766658638032,-151.0,0.00010636,2]
[399751147,1766658638042,-151.0,0.00010636,2]
[399751148,1766658638053,-151.0,0.00010636,2]
[399751149,1766658638070,-151.0,0.00010636,2]
[399751150,1766658638081,-151.0,0.00010636,2]
[399751151,1766658638092,-151.0,0.00010636,2]
[399751152,1766658638102,-150.99,0.00010638,2]
[399751153,1766658638112,-299.99,0.00010638,2]
[399751154,1766658638122,-9999.99,0.00010638,2]
[399751155,1766658638133,-3679.55,0.00010639,2]
[399751156,1766658638144,-9999.99,0.00010639,2]
[399751157,1766658638155,-190.52739364,0.00010639,2]
[399751158,1766658638165,-151.0,0.00010639,2]
[399751159,1766658638175,-151.0,0.00010639,2]
[399751160,1766658638185,-532.68,0.00010639,2]
[399751161,1766658638196,-500.0,0.00010641,2]
[399751162,1766658638206,-1000.0,0.00010642,2]
[399751163,1766658638219,-740.14339318,0.00010642,2]
[399751164,1766658638231,-1290.04665757,0.00010642,2]
[399751165,1766658638242,-166.66,0.00010874,2]
[399751166,1766658638253,-200.0,0.00010878,2]
[399751167,1766658638263,-207.4,0.00010878,2]
[399751168,1766658638273,-200.15744202,0.00010878,2]
[399751169,1766658638285,-1359.94516053,0.000109,2]
[399751170,1766658638295,-532.68,0.00010913,2]
[399751171,1766658638309,-151.0,0.00011096,2]
[399751172,1766658638319,-43519.98754603,0.00011099,2]
[399751173,1766658638331,-19940.00112118,0.00011099,2]
[399751174,1766658638342,-16068.23,0.00011124,2]
[399751175,1766658638755,-401.07,0.00011186,2]
[399751176,1766658638776,-532.68,0.00011187,2]
[399751177,1766658638787,-166.66,0.00011211,2]
[399751178,1766658638798,-19940.00112116,0.00011248,2]
[399751179,1766658638809,-43519.98754596,0.00011248,2]
[399751180,1766658638819,-1359.94516046,0.00011431,2]
[399751181,1766658638829,-532.68,0.00011461,2]
[399751182,1766658638839,-166.66,0.00011548,2]
[399751183,1766658638850,-255.0,0.00011556,2]
[399751184,1766658638861,-420.0,0.00011581,2]
[399751185,1766658638871,-420.0,0.00011581,2]
[399751186,1766658638880,-1680.0,0.00011587,2]
[399751187,1766658638890,-992.4445257,0.00011595,2]
[399751188,1766658638901,-1378.95583457,0.00011671,2]
[399751189,1766658638911,-300.0,0.00011674,2]
[399751190,1766658638921,-208.07500383,0.00011674,2]
[399751191,1766658638934,-250.0,0.00011674,2]
[399751192,1766658638951,-1680.0,0.00011681,2]
[399751193,1766658638972,-532.68,0.00011735,2]
[399751194,1766658638984,-150.0,0.00011863,2]
[399751195,1766658638996,-166.66,0.00011885,2]
[399751196,1766658639012,-19940.00112116,0.00011955,2]
[399751197,1766658639033,-43519.98754596,0.00011955,2]
[399751198,1766658639052,-5930.36961123,0.00012,2]
[399751199,1766658639063,-532.69238286,0.00012009,2]
[399751200,1766658639075,-1359.94516046,0.00012342,2]
[399751201,1766658639093,-992.4445257,0.00012656,2]
[399751202,1766658639105,-19940.00112116,0.00012661,2]
[399751203,1766658639117,-43519.98754596,0.00012661,2]
[399751204,1766658639129,-433.0,0.00012672,2]
[399751205,1766658639141,-587.0,0.00012732,2]
[399751206,1766658639153,-319.0,0.00012732,2]
[399751207,1766658639165,-2351.0,0.00012746,2]
[399751208,1766658639176,-1920.0,0.00012841,2]
[399751209,1766658639188,-403.87,0.00013002,2]
[399751210,1766658639199,-1359.94516046,0.00013254,2]
[399751211,1766658639209,-19940.00112116,0.00013368,2]
[399751212,1766658639225,-43519.98754596,0.00013368,2]
[399751213,1766658639237,-500.0,0.00013698,2]
[399751214,1766658639247,-500.0,0.00013698,2]
[399751215,1766658639257,-500.0,0.00013698,2]
[399751216,1766658639268,-500.0,0.00013698,2]
[399751217,1766658639279,-500.0,0.00013698,2]
[399751218,1766658639295,-500.0,0.00013698,2]
[399751219,1766658639306,-451.48949058,0.00013698,2]
[399751220,1766658639317,-500.0,0.00013698,2]
[399751221,1766658639328,-500.0,0.00013698,2]
[399751222,1766658639338,-500.0,0.00013698,2]
[399751223,1766658639347,-514.26394542,0.00013698,2]
[399751224,1766658639357,-500.0,0.00013698,2]
[399751225,1766658639367,-500.0,0.00013698,2]
[399751226,1766658639377,-500.0,0.00013698,2]
[399751227,1766658639386,-500.0,0.00013698,2]
[399751228,1766658639396,-500.0,0.00013698,2]
[399751229,1766658639406,-500.0,0.00013698,2]
[399751230,1766658639416,-500.0,0.00013698,2]
[399751231,1766658639426,-505.82761911,0.00013698,2]
[399751232,1766658639436,-1000.0,0.00013699,2]
[399751233,1766658639446,-200.0,0.00013699,2]
[399751234,1766658639455,-1258.14,0.00013699,2]
[399751235,1766658639466,-736.0,0.00013905,2]
[399751236,1766658639475,-250.0,0.0001392,2]
[399751237,1766658639488,-37446.51607669,0.0001399,2]
[399751238,1766658639498,-823.0,0.00013998,2]
[399751239,1766658639508,-3292.0,0.0001402,2]
[399751240,1766658639519,-19940.00112116,0.00014074,2]
[399751241,1766658639530,-43519.98754596,0.00014074,2]
[399751242,1766658639540,-1359.94516046,0.00014165,2]
[399751243,1766658639551,-10282.93147683,0.0001439,2]
[399751244,1766658639561,-10000.0,0.0001451,2]
[399751245,1766658639572,-19940.00112116,0.00014781,2]
[399751246,1766658639582,-43519.98754596,0.00014781,2]
[399751247,1766658639592,-500.0,0.00014813,2]
[399751248,1766658639603,-500.0,0.00014813,2]
[399751249,1766658639613,-246.80340688,0.000149,2]
[399751250,1766658639623,-500.0,0.00014939,2]
[399751251,1766658639634,-795.1232334,0.00015,14]
[399751252,1766658639644,-829.65,0.00015068,2]
[399751253,1766658639654,-1359.94516046,0.00015077,2]
[399751254,1766658639664,-151.0,0.00015124,2]
[399751255,1766658639675,-619.0,0.00015253,2]
[399751256,1766658639685,-183.38649304,0.00015288,2]
[399751257,1766658639695,-194.50106884,0.00015288,2]
[399751258,1766658639706,-156.92142475,0.00015288,2]
[399751259,1766658639716,-150.0,0.00015288,2]
[399751260,1766658639726,-150.0,0.00015288,2]
[399751261,1766658639737,-150.0,0.00015288,2]
[399751262,1766658639747,-150.0,0.00015288,2]
[399751263,1766658639757,-150.0,0.00015288,2]
[399751264,1766658639766,-150.0,0.00015288,2]
[399751265,1766658639776,-150.0,0.00015288,2]
[399751266,1766658639786,-150.0,0.00015288,2]
[399751267,1766658639796,-150.0,0.00015288,2]
[399751268,1766658639806,-150.0,0.00015288,2]
[399751269,1766658639816,-150.0,0.00015288,2]
[399751270,1766658639827,-194.50106884,0.00015305,2]
[399751271,1766658639837,-156.92142475,0.00015305,2]
[399751272,1766658639847,-150.0,0.00015307,2]
[399751273,1766658639857,-150.0,0.00015308,2]
[399751274,1766658639879,-1109.00444245,0.00015308,2]
[399751275,1766658639891,-500.0,0.00015308,2]
[399751276,1766658639902,-150.0,0.00015312,2]
[399751277,1766658639912,-194.50106884,0.00015322,2]
[399751278,1766658639923,-156.92142475,0.00015322,2]
[399751279,1766658639934,-150.0,0.00015325,2]
[399751280,1766658639945,-150.0,0.00015328,2]
[399751281,1766658639956,-150.0,0.00015336,2]
[399751282,1766658639967,-194.50106884,0.00015339,2]
[399751283,1766658639978,-156.92142475,0.00015339,2]
[399751284,1766658639987,-150.0,0.00015339,2]
[399751285,1766658639998,-150.0,0.00015344,2]
[399751286,1766658640010,-150.0,0.00015348,2]
[399751287,1766658640020,-194.50106884,0.00015356,2]
[399751288,1766658640030,-156.92142475,0.00015356,2]
[399751289,1766658640040,-150.0,0.0001536,2]
[399751291,1766658640051,-150.0,0.00015362,2]
[399751292,1766658640061,-150.0,0.00015363,2]
[399751295,1766658640072,-150.0,0.00015365,2]
[399751299,1766658640083,-150.0,0.00015368,2]
[399751302,1766658640094,-194.50106884,0.00015373,2]
[399751305,1766658640104,-156.92142475,0.00015373,2]
[399751308,1766658640115,-490.01789688,0.00015376,2]
[399751311,1766658640125,-150.0,0.00015382,2]
[399751313,1766658640136,-150.0,0.00015385,2]
[399751315,1766658640146,-150.0,0.00015388,2]
[399751317,1766658640156,-150.0,0.00015388,2]
[399751319,1766658640167,-1152.0,0.00015389,2]
[399751321,1766658640177,-194.50106884,0.00015391,2]
[399751323,1766658640187,-156.92142475,0.00015391,2]
[399751325,1766658640197,-150.0,0.00015391,2]
[399751327,1766658640207,-150.0,0.00015401,2]
[399751329,1766658640220,-150.0,0.00015408,2]
[399751332,1766658640236,-194.50106884,0.00015408,2]
[399751334,1766658640246,-156.92142475,0.00015408,2]
[399751336,1766658640257,-150.0,0.00015409,2]
[399751338,1766658640268,-150.0,0.0001542,2]
[399751340,1766658640278,-4609.0,0.00015423,2]
[399751342,1766658640288,-194.50106884,0.00015425,2]
[399751344,1766658640299,-156.92142475,0.00015425,2]
[399751346,1766658640310,-150.0,0.00015428,2]
[399751348,1766658640321,-150.0,0.00015433,2]
[399751351,1766658640331,-150.0,0.00015435,2]
[399751352,1766658640342,-150.0,0.00015439,2]
[399751353,1766658640352,-194.50106884,0.00015442,2]
[399751354,1766658640362,-156.92142475,0.00015442,2]
[399751355,1766658640373,-150.0,0.00015442,2]
[399751356,1766658640384,-150.0,0.00015442,2]
[399751357,1766658640394,-150.0,0.00015448,2]
[399751358,1766658640405,-150.0,0.00015458,2]
[399751359,1766658640416,-150.0,0.00015458,2]
[399751360,1766658640427,-194.50106884,0.00015459,2]
[399751361,1766658640438,-156.92142475,0.00015459,2]
[399751362,1766658640449,-150.0,0.00015468,2]
[399751363,1766658640460,-194.50106884,0.00015476,2]
[399751364,1766658640472,-156.92142475,0.00015476,2]
[399751365,1766658640484,-150.0,0.00015476,2]
[399751366,1766658640496,-150.0,0.00015482,2]
[399751367,1766658640507,-19940.00112116,0.00015487,2]
[399751368,1766658640519,-43519.98754596,0.00015487,2]
[399751369,1766658640530,-150.0,0.00015488,2]
[399751370,1766658640541,-150.0,0.00015488,2]
[399751371,1766658640552,-194.50106884,0.00015494,2]
[399751372,1766658640563,-156.92142475,0.00015494,2]
[399751373,1766658640574,-150.0,0.00015494,2]
[399751374,1766658640591,-150.0,0.00015495,2]
[399751375,1766658640603,-150.0,0.000155,2]
[399751376,1766658640615,-150.0,0.00015506,2]
[399751377,1766658640626,-150.0,0.00015507,2]
[399751378,1766658640636,-150.0,0.00015509,2]
[399751379,1766658640647,-10820.0,0.0001551,2]
[399751380,1766658640657,-194.50106884,0.00015511,2]
[399751381,1766658640669,-156.92142475,0.00015511,2]
[399751382,1766658640679,-150.0,0.00015514,2]
[399751383,1766658640692,-150.0,0.00015519,2]
[399751384,1766658640702,-150.0,0.00015527,2]
[399751385,1766658640713,-194.50106884,0.00015528,2]
[399751386,1766658640724,-156.92142475,0.00015528,2]
[399751387,1766658640735,-150.0,0.0001553,2]
[399751388,1766658640745,-150.0,0.00015533,2]
[399751389,1766658640755,-194.50106884,0.00015545,2]
[399751390,1766658640766,-156.92142475,0.00015545,2]
[399751391,1766658640776,-150.0,0.00015545,2]
[399751392,1766658640787,-150.0,0.00015547,2]
[399751393,1766658640797,-150.0,0.00015552,2]
[399751394,1766658640808,-150.0,0.00015555,2]
[399751395,1766658640819,-194.50106884,0.00015562,2]
[399751396,1766658640830,-156.92142475,0.00015562,2]
[399751397,1766658640840,-178.0,0.00015567,2]
[399751398,1766658640851,-150.0,0.00015567,2]
[399751399,1766658640861,-150.0,0.00015571,2]
[399751400,1766658640871,-150.0,0.00015571,2]
[399751401,1766658640881,-10000.0,0.00015572,2]
[399751402,1766658640891,-150.0,0.00015579,2]
[399751403,1766658640901,-194.50106884,0.00015579,2]
[399751404,1766658640911,-156.92142475,0.00015579,2]
[399751405,1766658640923,-150.0,0.00015583,2]
[399751406,1766658640934,-403.87,0.00015587,2]
[399751407,1766658640949,-150.0,0.00015587,2]
[399751408,1766658640960,-150.0,0.00015587,2]
[399751409,1766658640971,-150.0,0.0001559,2]
[399751410,1766658640982,-194.50106884,0.00015597,2]
[399751411,1766658640992,-156.92142475,0.00015597,2]
[399751412,1766658641002,-150.0,0.00015597,2]
[399751413,1766658641012,-150.0,0.00015597,2]
[399751414,1766658641023,-150.0,0.00015603,2]
[399751415,1766658641034,-150.0,0.00015607,2]
[399751416,1766658641044,-150.0,0.00015609,2]
[399751417,1766658641054,-194.50106884,0.00015614,2]
[399751418,1766658641066,-156.92142475,0.00015614,2]
[399751419,1766658641077,-150.0,0.00015627,2]
[399751420,1766658641087,-150.0,0.00015627,2]
[399751421,1766658641097,-150.0,0.00015627,2]
[399751422,1766658641107,-194.50106884,0.00015631,2]
[399751423,1766658641118,-156.92142475,0.00015631,2]
[399751424,1766658641128,-150.0,0.00015646,2]
[399751425,1766658641139,-150.0,0.00015647,2]
[399751426,1766658641149,-194.50106884,0.00015648,2]
[399751427,1766658641159,-156.92142475,0.00015648,2]
[399751428,1766658641170,-150.0,0.00015648,2]
[399751429,1766658641180,-150.0,0.00015652,2]
[399751430,1766658641190,-150.0,0.00015657,2]
[399751431,1766658641201,-401.07,0.0001566,2]
[399751432,1766658641211,-194.50106884,0.00015665,2]
[399751433,1766658641224,-156.92142475,0.00015665,2]
[399751434,1766658641235,-150.0,0.00015665,2]
[399751435,1766658641245,-1000.0,0.00015667,2]
[399751436,1766658641255,-150.0,0.00015667,2]
[399751437,1766658641268,-150.0,0.00015674,2]
[399751438,1766658641278,-150.0,0.00015676,2]
[399751439,1766658641288,-194.50106884,0.00015682,2]
[399751440,1766658641300,-156.92142475,0.00015682,2]
[399751441,1766658641315,-150.0,0.00015684,2]
[399751442,1766658641325,-150.0,0.00015687,2]
[399751443,1766658641336,-150.0,0.00015687,2]
[399751444,1766658641348,-194.50106884,0.00015699,2]
[399751445,1766658641370,-156.92142475,0.00015699,2]
[399751446,1766658641384,-150.0,0.00015699,2]
[399751447,1766658641395,-150.0,0.000157,2]
[399751448,1766658641406,-150.0,0.00015703,2]
[399751449,1766658641419,-150.0,0.00015707,2]
[399751450,1766658641431,-150.0,0.00015712,2]
[399751451,1766658641443,-150.0,0.00015712,2]
[399751452,1766658641453,-194.50106884,0.00015717,2]
[399751453,1766658641464,-156.92142475,0.00015717,2]
[399751454,1766658641475,-150.0,0.00015722,2]
[399751455,1766658641485,-150.0,0.00015724,2]
[399751456,1766658641496,-150.0,0.00015727,2]
[399751457,1766658641506,-150.0,0.00015731,2]
[399751458,1766658641516,-194.50106884,0.00015734,2]
[399751459,1766658641641,-156.92142475,0.00015734,2]
[399751460,1766658641652,-150.0,0.00015741,2]
[399751461,1766658641662,-200.0,0.00015747,2]
[399751462,1766658641672,-150.0,0.00015747,2]
[399751463,1766658641682,-150.0,0.00015749,2]
[399751464,1766658641695,-162.64,0.0001575,2]
[399751465,1766658641706,-194.50106884,0.00015751,2]
[399751466,1766658641716,-156.92142475,0.00015751,2]
[399751467,1766658641725,-150.0,0.00015751,2]
[399751468,1766658641735,-150.0,0.00015751,2]
[399751469,1766658641746,-150.0,0.0001576,2]
[399751470,1766658641756,-150.0,0.00015767,2]
[399751471,1766658641767,-194.50106884,0.00015768,2]
[399751472,1766658641777,-156.92142475,0.00015768,2]
[399751473,1766658641787,-150.0,0.00015773,2]
[399751474,1766658641797,-150.0,0.00015778,2]
[399751475,1766658641807,-194.50106884,0.00015785,2]
[399751476,1766658641817,-156.92142475,0.00015785,2]
[399751477,1766658641827,-150.0,0.00015787,2]
[399751478,1766658641837,-150.0,0.00015787,2]
[399751479,1766658641848,-403.87,0.00015789,2]
[399751480,1766658641858,-150.0,0.00015797,2]
[399751481,1766658641868,-150.0,0.00015797,2]
[399751482,1766658641878,-194.50106884,0.00015802,2]
[399751483,1766658641889,-156.92142475,0.00015802,2]
[399751484,1766658641899,-150.0,0.00015802,2]
[399751485,1766658641909,-150.0,0.00015805,2]
[399751486,1766658641919,-150.0,0.00015807,2]
[399751487,1766658641929,-150.0,0.00015816,2]
[399751488,1766658641939,-194.50106884,0.0001582,2]
[399751489,1766658641949,-156.92142475,0.0001582,2]
[399751490,1766658641958,-150.0,0.00015822,2]
[399751491,1766658641968,-150.0,0.00015827,2]
[399751492,1766658641978,-150.0,0.00015828,2]
[399751493,1766658641988,-150.0,0.00015835,2]
[399751494,1766658641998,-194.50106884,0.00015837,2]
[399751495,1766658642008,-156.92142475,0.00015837,2]
[399751496,1766658642018,-150.0,0.00015846,2]
[399751497,1766658642028,-1077.0,0.00015847,2]
[399751498,1766658642038,-150.0,0.00015847,2]
[399751499,1766658642048,-194.50106884,0.00015854,2]
[399751500,1766658642058,-156.92142475,0.00015854,2]
[399751501,1766658642077,-150.0,0.00015854,2]
[399751502,1766658642093,-150.0,0.00015854,2]
[399751503,1766658642103,-150.0,0.00015854,2]
[399751504,1766658642114,-178.0,0.00015866,2]
[399751505,1766658642124,-150.0,0.00015867,2]
[399751506,1766658642134,-150.0,0.0001587,2]
[399751507,1766658642144,-194.50106884,0.00015871,2]
[399751508,1766658642154,-156.92142475,0.00015871,2]
[399751509,1766658642164,-150.0,0.00015873,2]
[399751510,1766658642174,-150.0,0.00015878,2]
[399751511,1766658642184,-150.0,0.00015887,2]
[399751512,1766658642194,-150.0,0.00015887,2]
[399751513,1766658642203,-194.50106884,0.00015888,2]
[399751514,1766658642214,-156.92142475,0.00015888,2]
[399751515,1766658642227,-150.0,0.00015892,2]
[399751516,1766658642238,-150.0,0.00015894,2]
[399751517,1766658642249,-1922.31035713,0.00015905,2]
[399751518,1766658642259,-194.50106884,0.00015905,2]